fUST/lending_fUST_20260116
["ID","MTS","AMOUNT","RATE_DAILY","PERIOD"]
[402131333,1768536631919,-500.0,0.00010299,2]
[402131335,1768536631930,-500.0,0.00010299,2]
[402131336,1768536631939,-500.0,0.00010299,2]
[402131337,1768536631949,-465.26820142,0.00010299,2]
[402131338,1768536631958,-500.0,0.00010299,2]
[402131340,1768536631967,-500.0,0.00010299,2]
[402131342,1768536631976,-500.0,0.00010299,2]
[402131344,1768536631985,-153.10027292,0.00010299,2]
[402131346,1768536631994,-500.0,0.00010299,2]
[402131348,1768536632004,-500.0,0.00010299,2]
[402131349,1768536632014,-500.0,0.00010299,2]
[402131350,1768536632023,-500.0,0.00010299,2]
[402131351,1768536632032,-193.98552209,0.00010299,2]
[402131352,1768536632042,-500.0,0.00010299,2]
[402131353,1768536632052,-500.0,0.00010299,2]
[402131354,1768536632061,-500.0,0.00010299,2]
[402131355,1768536632071,-500.0,0.00010299,2]
[402131356,1768536632080,-500.0,0.00010299,2]
[402131357,1768536632090,-500.0,0.00010299,2]
[402131358,1768536632099,-500.0,0.00010299,2]
[402131359,1768536632108,-500.0,0.00010299,2]
[402131360,1768536632117,-500.0,0.00010299,2]
[402131361,1768536632126,-500.0,0.00010299,2]
[402131362,1768536632135,-500.0,0.00010299,2]
[402131363,1768536632144,-53.64961675,0.00010299,2]
[402131364,1768536632156,-300.042,0.00010299,2]
[402131407,1768536638084,-146.30838325,0.00010299,2]
[402131409,1768536638093,-500.0,0.00010299,2]
[402131411,1768536638103,-500.0,0.00010299,2]
[402131413,1768536638112,-500.0,0.00010299,2]
[402131415,1768536638121,-500.0,0.00010299,2]
[402131417,1768536638130,-478.74736108,0.00010299,2]
[402131419,1768536638139,-500.0,0.00010299,2]
[402131421,1768536638149,-500.0,0.00010299,2]
[402131423,1768536638158,-500.0,0.00010299,2]
[402131425,1768536638167,-500.0,0.00010299,2]
[402131427,1768536638177,-323.57391865,0.00010299,2]
[402131429,1768536638186,-500.0,0.00010299,2]
[402131431,1768536638195,-1000000.0,0.000103,2]
[402131432,1768536638204,-5133.1561894,0.000103,2]
[402131434,1768536638213,-494.39702115,0.000104,2]
[402131436,1768536638222,-500.0,0.000104,2]
[402131438,1768536638232,-500.0,0.000104,2]
[402131440,1768536638241,-500.0,0.000104,2]
[402131442,1768536638250,-500.0,0.000104,2]
[402131444,1768536638260,-500.0,0.000104,2]
[402131446,1768536638269,-500.0,0.000104,2]
[402131448,1768536638279,-500.0,0.000104,2]
[402131450,1768536638288,-500.0,0.000104,2]
[402131452,1768536638298,-500.0,0.000104,2]
[402131454,1768536638307,-500.0,0.000104,2]
[402131456,1768536638317,-500.0,0.000104,2]
[402131458,1768536638327,-500.0,0.000104,2]
[402131460,1768536638336,-500.0,0.000104,2]
[402131462,1768536638346,-500.0,0.000104,2]
[402131464,1768536638356,-500.0,0.000104,2]
[402131466,1768536638366,-500.0,0.000104,2]
[402131468,1768536638375,-500.0,0.000104,2]
[402131470,1768536638384,-500.0,0.000104,2]
[402131472,1768536638393,-500.0,0.000104,2]
[402131474,1768536638402,-500.0,0.000104,2]
[402131475,1768536638412,-500.0,0.000104,2]
[402131477,1768536638421,-500.0,0.000104,2]
[402131479,1768536638430,-500.0,0.000104,2]
[402131481,1768536638439,-574.71870196,0.000104,2]
[402131483,1768536638448,-500.0,0.000104,2]
[402131485,1768536638456,-500.0,0.000104,2]
[402131487,1768536638466,-500.0,0.000104,2]
[402131489,1768536638475,-500.0,0.000104,2]
[402131490,1768536638484,-500.0,0.000104,2]
[402131492,1768536638494,-500.0,0.000104,2]
[402131494,1768536638504,-847.52124845,0.000104,2]
[402131496,1768536638514,-500.4887792,0.000104,2]
[402131498,1768536638524,-500.0,0.000104,2]
[402131500,1768536638533,-500.0,0.000104,2]
[402131502,1768536638542,-500.0,0.000104,2]
[402131516,1768536638665,-500.52270339,0.000104,2]
[402131520,1768536638697,-500.0,0.000104,2]
[402131522,1768536638706,-500.0,0.000104,2]
[402131524,1768536638716,-500.0,0.000104,2]
[402131526,1768536638725,-500.0,0.000104,2]
[402131528,1768536638735,-502.10635798,0.000104,2]
[402131530,1768536638745,-500.0,0.000104,2]
[402131532,1768536638755,-500.0,0.000104,2]
[402131533,1768536638764,-500.0,0.000104,2]
[402131535,1768536638774,-500.0,0.000104,2]
[402131537,1768536638783,-500.0,0.000104,2]
[402131539,1768536638792,-904.11483286,0.000104,2]
[402131540,1768536638801,-500.0,0.000104,2]
[402131541,1768536638811,-500.0,0.000104,2]
[402131543,1768536638820,-500.0,0.000104,2]
[402131545,1768536638830,-500.0,0.000104,2]
[402131546,1768536638842,-500.0,0.000104,2]
[402131548,1768536638851,-500.0,0.000104,2]
[402131549,1768536638861,-500.0,0.000104,2]
[402131550,1768536638870,-500.0,0.000104,2]
[402131551,1768536638879,-500.0,0.000104,2]
[402131552,1768536638888,-500.0,0.000104,2]
[402131553,1768536638898,-500.0,0.000104,2]
[402131554,1768536638907,-500.0,0.000104,2]
[402131555,1768536638916,-500.0,0.000104,2]
[402131556,1768536638924,-509.28931829,0.000104,2]
[402131557,1768536638933,-600.0,0.00010607,2]
[402131558,1768536638942,-420.0,0.00011324,2]
[402131559,1768536638951,-226.44425578,0.00011336,2]
[402131560,1768536638960,-2285.00762647,0.00011497,2]
[402131561,1768536638970,-720.0,0.00011668,2]
[402131562,1768536638979,-617.82932725,0.00011769,2]
[402131563,1768536638987,-307.82744338,0.0001218,2]
[402131564,1768536638996,-219.95,0.00012329,2]
[402131565,1768536639005,-500.0,0.00012329,2]
[402131566,1768536639015,-500.0,0.00012329,2]
[402131567,1768536639028,-500.0,0.00012329,2]
[402131568,1768536639036,-545.06163469,0.00012329,2]
[402131569,1768536639045,-500.0,0.00012329,2]
[402131570,1768536639054,-500.0,0.00012329,2]
[402131571,1768536639063,-500.0,0.00012329,2]
[402131572,1768536639072,-500.0,0.00012329,2]
[402131573,1768536639082,-500.0,0.00012329,2]
[402131574,1768536639091,-500.0,0.00012329,2]
[402131575,1768536639100,-500.0,0.00012329,2]
[402131576,1768536639110,-500.0,0.00012329,2]
[402131577,1768536639120,-500.0,0.00012329,2]
[402131578,1768536639130,-500.0,0.00012329,2]
[402131579,1768536639139,-500.0,0.00012329,2]
[402131580,1768536639148,-500.0,0.00012329,2]
[402131581,1768536639157,-500.0,0.00012329,2]
[402131582,1768536639166,-300.0,0.00012329,2]
[402131583,1768536639176,-500.0,0.00012329,2]
[402131584,1768536639185,-500.0,0.00012329,2]
[402131585,1768536639195,-500.0,0.00012329,2]
[402131586,1768536639204,-587.0,0.00012453,2]
[402131587,1768536639214,-864.0,0.00012834,2]
[402131588,1768536639223,-8354.6654711,0.000129,2]
[402131589,1768536639232,-8354.66547109,0.000129,2]
[402131590,1768536639241,-500.0,0.00013273,2]
[402131591,1768536639251,-500.0,0.00013273,2]
[402131592,1768536639261,-501.64226358,0.00013273,2]
[402131593,1768536639270,-500.0,0.00013273,2]
[402131594,1768536639279,-501.13721693,0.00013273,2]
[402131595,1768536639288,-500.37529675,0.00013273,2]
[402131596,1768536639298,-500.0,0.00013273,2]
[402131597,1768536639307,-506.52988688,0.00013273,2]
[402131598,1768536639316,-500.0,0.00013273,2]
[402131599,1768536639326,-500.29601769,0.00013273,2]
[402131600,1768536639335,-500.0,0.00013273,2]
[402131601,1768536639345,-500.9653681,0.00013273,2]
[402131602,1768536639354,-373.0,0.00013597,2]
[402131603,1768536639363,-300.0,0.00013673,2]
[402131604,1768536639372,-823.0,0.00013694,2]
[402131605,1768536639382,-1697.48,0.00013698,2]
[402131606,1768536639391,-1697.48,0.00013698,2]
[402131607,1768536639400,-1697.48,0.00013698,2]
[402131608,1768536639409,-1697.48,0.00013698,2]
[402131609,1768536639418,-1697.48,0.00013698,2]
[402131610,1768536639427,-1697.48,0.00013698,2]
[402131611,1768536639436,-1697.48,0.00013698,2]
[402131612,1768536639447,-1697.48,0.00013698,2]
[402131613,1768536639456,-1697.48,0.00013698,2]
[402131614,1768536639465,-1697.48,0.00013698,2]
[402131615,1768536639474,-1697.48,0.00013698,2]
[402131616,1768536639483,-1697.48,0.00013698,2]
[402131617,1768536639492,-1697.48,0.00013698,2]
[402131618,1768536639501,-1697.48,0.00013698,2]
[402131619,1768536639510,-1697.48,0.00013698,2]
[402131620,1768536639519,-1697.48,0.00013698,2]
[402131621,1768536639528,-1697.48,0.00013698,2]
[402131622,1768536639537,-1697.48,0.00013698,2]
[402131623,1768536639546,-1697.48,0.00013698,2]
[402131624,1768536639555,-1697.48,0.00013698,2]
[402131625,1768536639565,-1697.48,0.00013698,2]
[402131626,1768536639574,-1697.48,0.00013698,2]
[402131627,1768536639583,-1697.48,0.00013698,2]
[402131628,1768536639593,-1697.51309236,0.00013698,2]
[402131629,1768536639602,-567.72559682,0.00013698,2]
[402131630,1768536639612,-1204.24,0.00013698,2]
[402131631,1768536639621,-1204.24,0.00013698,2]
[402131632,1768536639631,-1204.24,0.00013698,2]
[402131633,1768536639640,-1204.24,0.00013698,2]
[402131634,1768536639649,-1204.24,0.00013698,2]
[402131635,1768536639660,-1204.24,0.00013698,2]
[402131636,1768536639669,-1204.24,0.00013698,2]
[402131638,1768536639678,-1204.24,0.00013698,2]
[402131640,1768536639687,-1204.24,0.00013698,2]
[402131643,1768536639696,-1204.24,0.00013698,2]
[402131646,1768536639705,-1204.24,0.00013698,2]
[402131648,1768536639715,-1204.24,0.00013698,2]
[402131650,1768536639724,-1204.24,0.00013698,2]
[402131652,1768536639733,-1204.24,0.00013698,2]
[402131654,1768536639742,-1204.24,0.00013698,2]
[402131656,1768536639751,-1204.24,0.00013698,2]
[402131657,1768536639760,-1204.24,0.00013698,2]
[402131658,1768536639769,-1204.24,0.00013698,2]
[402131660,1768536639778,-1204.24,0.00013698,2]
[402131661,1768536639788,-1204.24,0.00013698,2]
[402131663,1768536639797,-1204.24,0.00013698,2]
[402131665,1768536639806,-1204.24,0.00013698,2]
[402131667,1768536639817,-1204.24,0.00013698,2]
[402131669,1768536639826,-1204.33791038,0.00013698,2]
[402131671,1768536639839,-500.0,0.00013698,2]
[402131673,1768536639848,-500.0,0.00013698,2]
[402131675,1768536639857,-500.0,0.00013698,2]
[402131677,1768536639866,-500.0,0.00013698,2]
[402131679,1768536639875,-500.0,0.00013698,2]
[402131681,1768536639884,-500.0,0.00013698,2]
[402131683,1768536639893,-525.74690785,0.00013698,2]
[402131685,1768536639903,-500.0,0.00013698,2]
[402131687,1768536639916,-500.0,0.00013698,2]
[402131688,1768536639925,-500.0,0.00013698,2]
[402131689,1768536639934,-705.149696,0.00013699,2]
[402131690,1768536639945,-1000.0,0.00013699,2]
[402131691,1768536639955,-500.0,0.00013699,2]
[402131692,1768536639964,-500.0,0.00013699,2]
[402131693,1768536639974,-500.0,0.00013699,2]
[402131694,1768536639995,-500.0,0.00013699,2]
[402131696,1768536640004,-500.0,0.00013699,2]
[402131698,1768536640014,-500.0,0.00013699,2]
[402131699,1768536640025,-500.0,0.00013699,2]
[402131701,1768536640034,-501.82620036,0.00013699,2]
[402131703,1768536640043,-500.0,0.00013699,2]
[402131705,1768536640052,-622.93942038,0.00013699,2]
[402131707,1768536640061,-500.0,0.00013699,2]
[402131709,1768536640071,-502.61209366,0.00013699,2]
[402131710,1768536640080,-308.86248808,0.00013699,2]
[402131711,1768536640089,-597.74982003,0.00013699,2]
[402131712,1768536640098,-500.0,0.00013699,2]
[402131713,1768536640107,-500.0,0.00013699,2]
[402131714,1768536640116,-500.0,0.00013699,2]
[402131715,1768536640126,-2060.41,0.00013775,2]
[402131716,1768536640136,-500.0,0.0001382,2]
[402131717,1768536640145,-504.2764385,0.00013821,2]
[402131718,1768536640154,-1004.15629489,0.00013821,2]
[402131719,1768536640164,-500.47248142,0.00013821,2]
[402131720,1768536640173,-1000.0,0.00013821,2]
[402131721,1768536640182,-1000.0,0.00013821,2]
[402131722,1768536640192,-250.42510646,0.00013969,2]
[402131723,1768536640201,-100000.0,0.00014006,2]
[402131724,1768536640210,-1000.0,0.00014118,2]
[402131725,1768536640220,-354.78417203,0.0001418,2]
[402131726,1768536640231,-600.0,0.00014221,2]
[402131727,1768536640241,-2471.31730901,0.00014233,2]
[402131728,1768536640251,-1002.84499725,0.00014247,2]
[402131729,1768536640261,-431.73453214,0.00014247,2]
[402131730,1768536640270,-1000.0,0.00014247,2]
[402131731,1768536640279,-1000.0,0.00014247,2]
[402131732,1768536640289,-1000.0,0.00014247,2]
[402131733,1768536640300,-1000.0,0.00014247,2]
[402131734,1768536640310,-194.1362209,0.00014247,2]
[402131735,1768536640320,-250.0,0.00014247,2]
[402131737,1768536640330,-1000.0,0.00014247,2]
[402131738,1768536640340,-1000.0,0.00014247,2]
[402131739,1768536640349,-310.63775509,0.00014247,2]
[402131740,1768536640362,-502.90945713,0.00014247,2]
[402131741,1768536640371,-1000.0,0.00014247,2]
[402131742,1768536640380,-1500.0,0.00014368,2]
[402131743,1768536640390,-1500.0,0.00014368,2]
[402131744,1768536640399,-5000.0,0.0001451,2]
[402131745,1768536640408,-3535.16039033,0.00014753,2]
[402131746,1768536640418,-303.86573033,0.00014768,2]
[402131747,1768536640427,-500.0,0.00014794,2]
[402131748,1768536640436,-1500.0,0.00014795,2]
[402131749,1768536640445,-1500.0,0.00014795,2]
[402131750,1768536640454,-1500.0,0.00014795,2]
[402131751,1768536640463,-201.20977606,0.00014795,2]
[402131752,1768536640473,-1500.0,0.00014795,2]
[402131753,1768536640482,-1201.29172815,0.00014795,2]
[402131754,1768536640491,-243.42946379,0.00014795,2]
[402131755,1768536640501,-475.0,0.00014795,2]
[402131756,1768536640510,-475.0,0.00014795,2]
[402131757,1768536640520,-475.0,0.00014795,2]
[402131758,1768536640529,-475.0,0.00014795,2]
[402131759,1768536640538,-475.0,0.00014795,2]
[402131760,1768536640547,-475.0,0.00014795,2]
[402131761,1768536640557,-475.0,0.00014795,2]
[402131762,1768536640566,-475.0,0.00014795,2]
[402131763,1768536640575,-475.0,0.00014795,2]
[402131764,1768536640584,-475.0,0.00014795,2]
[402131765,1768536640593,-475.0,0.00014795,2]
[402131766,1768536640603,-475.0,0.00014795,2]
[402131767,1768536640612,-475.0,0.00014795,2]
[402131768,1768536640622,-475.0,0.00014795,2]
[402131769,1768536640631,-475.0,0.00014795,2]
[402131770,1768536640641,-475.0,0.00014795,2]
[402131771,1768536640650,-475.0,0.00014795,2]
[402131772,1768536640660,-475.0,0.00014795,2]
[402131773,1768536640670,-475.0,0.00014795,2]
[402131774,1768536640679,-475.0,0.00014795,2]
[402131775,1768536640688,-475.0,0.00014795,2]
[402131776,1768536640698,-475.0,0.00014795,2]
[402131777,1768536640708,-475.0,0.00014795,2]
[402131778,1768536640717,-160.328,0.00014795,2]
[402131779,1768536640727,-2000.0,0.00014916,2]
[402131780,1768536640736,-1085.06424983,0.00014916,2]
[402131781,1768536640753,-500.0,0.00014999,2]
[402131782,1768536640767,-160.08,0.00015,2]
[402131783,1768536640776,-475.0,0.00015,2]
[402131784,1768536640785,-475.0,0.00015,2]
[402131785,1768536640794,-475.0,0.00015,2]
[402131786,1768536640803,-475.0,0.00015,2]
[402131787,1768536640812,-475.0,0.00015,2]
[402131788,1768536640822,-475.0,0.00015,2]
[402131789,1768536640832,-475.0,0.00015,2]
[402131790,1768536640843,-1152.0,0.00015059,2]
[402131791,1768536640853,-164.322877,0.00015068,2]
[402131792,1768536640862,-8354.66547109,0.00015085,2]
[402131793,1768536640871,-475.0,0.00015329,2]
[402131794,1768536640881,-606.16105087,0.00015342,2]
[402131795,1768536640890,-891.24466261,0.00015342,2]
[402131796,1768536640899,-2066.58649571,0.00015342,2]
[402131797,1768536640909,-500.0,0.00015342,2]
[402131798,1768536640918,-2500.0,0.00015464,2]
[402131799,1768536640928,-1000.0,0.0001553,2]
[402131800,1768536640937,-244.0,0.0001553,2]
[402131801,1768536640946,-500.0,0.00015748,2]
[402131802,1768536640956,-217.01515767,0.00015748,2]
[402131803,1768536640965,-500.0,0.00015749,30]
[402131804,1768536640976,-500.0,0.00015749,30]
[402131805,1768536640985,-500.0,0.00015749,30]
[402131806,1768536640995,-500.0,0.00015749,30]
[402131807,1768536641004,-500.0,0.00015749,30]
[402131808,1768536641014,-500.0,0.00015749,30]
[402131809,1768536641023,-500.0,0.00015749,30]
[402131810,1768536641032,-500.0,0.00015749,30]
[402131811,1768536641042,-500.0,0.00015749,30]
[402131812,1768536641051,-500.0,0.00015749,30]
[402131813,1768536641060,-500.0,0.00015749,30]
[402131814,1768536641069,-500.0,0.00015749,30]
[402131815,1768536641079,-500.0,0.00015749,30]
[402131816,1768536641089,-500.0,0.00015749,30]
[402131817,1768536641099,-500.0,0.00015749,30]
[402131818,1768536641109,-500.0,0.00015749,30]
[402131819,1768536641118,-500.0,0.00015749,30]
[402131820,1768536641128,-500.0,0.00015749,30]
[402131821,1768536641137,-500.0,0.00015749,30]
[402131822,1768536641146,-791.6929879,0.00015749,30]
[402131823,1768536641156,-500.0,0.00015749,30]
[402131824,1768536641165,-500.0,0.00015749,30]
[402131825,1768536641174,-500.0,0.00015749,30]
[402131826,1768536641183,-500.0,0.00015749,30]
[402131827,1768536641192,-500.0,0.00015749,30]
[402131828,1768536641201,-500.0,0.00015749,30]
[402131829,1768536641210,-500.0,0.00015749,30]
[402131830,1768536641220,-500.0,0.00015749,30]
[402131831,1768536641230,-500.0,0.00015749,30]
[402131832,1768536641239,-500.0,0.00015749,30]
[402131833,1768536641248,-500.0,0.00015749,30]
[402131834,1768536641257,-500.0,0.00015749,30]
[402131835,1768536641267,-500.0,0.00015749,30]
[402131836,1768536641276,-500.0,0.00015749,30]
[402131837,1768536641285,-500.0,0.00015749,30]
[402131838,1768536641294,-523.05675553,0.00015749,30]
[402131839,1768536641303,-425.28129804,0.00015749,30]
[402131840,1768536641313,-152.47875155,0.00015749,30]
[402131841,1768536641322,-901.60735931,0.00015749,30]
[402131842,1768536641331,-190.0,0.00015749,30]
[402131843,1768536641341,-500.0,0.00015749,30]
[402131844,1768536641350,-500.0,0.00015749,30]
[402131845,1768536641359,-500.0,0.00015749,30]
[402131846,1768536641368,-499.3,0.00015749,30]
[402131847,1768536641378,-500.0,0.00015749,30]
[402131848,1768536641387,-500.0,0.00015749,30]
[402131849,1768536641396,-500.0,0.00015749,30]
[402131850,1768536641405,-500.0,0.00015749,30]
[402131851,1768536641414,-500.0,0.00015749,30]
[402131852,1768536641423,-500.0,0.00015749,30]
[402131853,1768536641432,-500.0,0.00015749,30]
[402131854,1768536641748,-500.0,0.00015749,30]
[402131855,1768536641759,-500.0,0.00015749,30]
[402131856,1768536641769,-500.0,0.00015749,30]
[402131857,1768536641778,-500.0,0.00015749,30]
[402131858,1768536641788,-500.0,0.00015749,30]
[402131859,1768536641798,-500.0,0.00015749,30]
[402131860,1768536641807,-500.0,0.00015749,30]
[402131861,1768536641816,-500.0,0.00015749,30]
[402131862,1768536641825,-500.0,0.00015749,30]
[402131863,1768536641835,-500.0,0.00015749,30]
[402131864,1768536641848,-500.0,0.00015749,30]
[402131865,1768536641858,-500.0,0.00015749,30]
[402131866,1768536641868,-500.0,0.00015749,30]
[402131867,1768536641879,-500.0,0.00015749,30]
[402131868,1768536641890,-500.0,0.00015749,30]
[402131869,1768536641900,-500.0,0.00015749,30]
[402131870,1768536641911,-500.0,0.00015749,30]
[402131871,1768536641921,-500.0,0.00015749,30]
[402131872,1768536641931,-500.0,0.00015749,30]
[402131873,1768536641940,-500.0,0.00015749,30]
[402131874,1768536641950,-500.0,0.00015749,30]
[402131875,1768536641959,-3000.0,0.00016012,2]
[402131876,1768536641970,-475.0,0.00016154,2]
[402131877,1768536641980,-401.74090068,0.0001618,2]
[402131878,1768536641991,-380.6,0.00016438,2]
[402131879,1768536642000,-164.33129574,0.00016438,2]
[402131880,1768536642010,-200.10020518,0.00016473,2]
[402131881,1768536642020,-1491.0,0.0001656,2]
[402131882,1768536642029,-3500.0,0.0001656,2]
[402131883,1768536642038,-5560.46394527,0.00016698,2]
[402131884,1768536642047,-162.09,0.00016901,2]
[402131885,1768536642056,-1000.0,0.00017083,2]
[402131886,1768536642065,-492.0,0.00017083,2]
[402131887,1768536642075,-380.6,0.00017086,2]
[402131888,1768536642084,-1005.66172212,0.00017108,2]
[402131889,1768536642095,-3022.22823643,0.00017147,2]
[402131890,1768536642106,-1041.66666667,0.00017199,2]
[402131891,1768536642115,-5000.0,0.00017412,2]
[402131892,1768536642127,-8354.66547109,0.00017527,2]
[402131893,1768536642138,-380.6,0.00017733,2]
[402131894,1768536642148,-182.35,0.0001784,2]
[402131895,1768536642157,-4469.21383652,0.0001805,2]
[402131896,1768536642167,-448.69762933,0.0001818,2]
[402131897,1768536642176,-380.6,0.00018381,2]
[402131898,1768536642185,-1152.0,0.00018666,2]
[402131899,1768536642195,-1152.0,0.00018699,2]
[402131900,1768536642205,-1152.0,0.00018732,2]
[402131901,1768536642215,-1152.0,0.00018738,2]
[402131902,1768536642224,-1152.0,0.00018744,2]
[402131903,1768536642236,-1152.0,0.00018759,2]
[402131904,1768536642247,-1152.0,0.00018769,2]
[402131905,1768536642257,-197.516481,0.00018778,2]
[402131906,1768536642266,-1000.0,0.00018791,2]
[402131907,1768536642276,-791.0,0.00018791,2]
[402131908,1768536642286,-5000.0,0.00018863,2]
[402131909,1768536642297,-1152.0,0.000189,2]
[402131910,1768536642307,-303.10001603,0.000189,2]
[402131911,1768536642317,-303.10001603,0.000189,2]
[402131912,1768536642327,-629.0,0.00018912,2]
[402131913,1768536642336,-1367.0,0.00018912,2]
[402131914,1768536642346,-2147.0,0.00018912,2]
[402131915,1768536642356,-417.0,0.00018912,2]
[402131916,1768536642366,-1152.0,0.0001895,2]
[402131917,1768536642375,-1152.0,0.00019021,2]
[402131918,1768536642385,-1152.0,0.00019026,2]
[402131919,1768536642395,-380.6,0.00019029,2]
[402131920,1768536642406,-303.10001603,0.00019089,2]
[402131921,1768536642416,-503.608518,0.00019089,7]
[402131922,1768536642427,-303.10001603,0.00019089,2]
[402131923,1768536642437,-773.230295,0.00019098,7]
[402131924,1768536642448,-190.430675,0.00019098,7]
[402131925,1768536642458,-1152.0,0.00019163,2]
[402131926,1768536642469,-207.893732,0.00019163,7]
[402131927,1768536642478,-199.142036,0.00019163,7]
[402131928,1768536642488,-1152.0,0.00019167,2]
[402131929,1768536642498,-500.0,0.00019176,2]
[402131930,1768536642508,-155.1,0.00019177,2]
[402131931,1768536642517,-2536.6217,0.00019178,2]
[402131932,1768536642527,-200.0,0.00019178,2]
[402131933,1768536642537,-2536.6217,0.00019178,2]
[402131934,1768536642547,-485.01,0.00019178,2]
[402131935,1768536642556,-1354.67,0.00019178,2]
[402131936,1768536642565,-1354.67,0.00019178,2]
[402131937,1768536642574,-1354.67,0.00019178,2]
[402131938,1768536642584,-1354.67,0.00019178,2]
[402131939,1768536642593,-1354.67,0.00019178,2]
[402131941,1768536642602,-1354.67,0.00019178,2]
[402131942,1768536642611,-1354.67,0.00019178,2]
[402131943,1768536642621,-1354.67,0.00019178,2]
[402131945,1768536642630,-364672.32955697,0.00019196,2]
[402131947,1768536642639,-1796.040967,0.00019196,2]
[402131948,1768536642649,-1796.040967,0.00019196,2]
[402131950,1768536642658,-1796.040967,0.00019196,2]
[402131951,1768536642667,-1796.040967,0.00019196,2]
[402131953,1768536642677,-151.0,0.00019196,2]
[402131954,1768536642686,-1354.67,0.00019196,2]
[402131955,1768536642696,-259.729001,0.00019198,7]
[402131956,1768536642706,-3126.56503043,0.00019198,2]
[402131957,1768536642715,-167.99,0.000192,2]
[402131958,1768536642725,-3054.34,0.000192,2]
[402131959,1768536642735,-17119.78,0.000192,2]
[402131961,1768536642744,-196.02,0.000192,2]
[402131962,1768536642754,-231.69,0.000192,2]
[402131963,1768536642763,-1354.67,0.00019205,2]
[402131964,1768536642773,-1811.0,0.00019206,2]
[402131965,1768536642783,-160.0,0.00019213,2]
[402131967,1768536642791,-728.0,0.00019215,2]
[402131969,1768536642801,-1068.59062,0.00019215,7]
[402131970,1768536642810,-1152.0,0.00019221,2]
[402131971,1768536642819,-200.2366366,0.00019227,2]
[402131972,1768536642829,-500.0,0.00019227,2]
[402131973,1768536642843,-500.0,0.00019227,2]
[402131974,1768536642852,-777.0,0.00019227,2]
[402131975,1768536642864,-500.0,0.00019227,2]
[402131976,1768536642874,-500.0,0.00019227,2]
[402131977,1768536642885,-500.0,0.00019227,2]
[402131978,1768536642895,-500.0,0.00019227,2]
[402131979,1768536642907,-418.0,0.00019227,2]
[402131980,1768536642917,-1152.0,0.00019267,2]
[402131981,1768536642927,-303.10001603,0.00019278,2]
[402131982,1768536642938,-303.10001603,0.00019278,2]
[402131983,1768536642948,-1152.0,0.00019282,2]
[402131984,1768536642958,-1152.0,0.0001933,2]
[402131985,1768536642968,-150.19,0.00019332,2]
[402131986,1768536642978,-150.202,0.00019332,2]
[402131987,1768536642987,-385.6407916,0.00019342,2]
[402131988,1768536642997,-153.47584433,0.00019364,2]
[402131989,1768536643006,-500.0,0.00019364,2]
[402131990,1768536643016,-500.0,0.00019364,2]
[402131991,1768536643026,-777.0,0.00019364,2]
[402131992,1768536643036,-500.0,0.00019364,2]
[402131993,1768536643046,-500.0,0.00019364,2]
[402131994,1768536643056,-500.0,0.00019364,2]
[402131995,1768536643065,-500.0,0.00019364,2]